bitfinex/quotes_SOLUSD_20230904
["timestamp","ask_amount","ask_price","bid_price","bid_amount"]
[1693788872809,25.72,19.69,19.675,107.13306621]
[1693788873520,25.72,19.69,19.676,55.0]
[1693788874317,25.72,19.69,19.674,57.07122558]
[1693788874318,20.0,19.689,19.674,57.07122558]
[1693788874517,20.0,19.689,19.675,55.0]
[1693788875107,20.0,19.689,19.675,80.72]
[1693788875314,7.919,19.698,19.675,80.72]
[1693788875315,92.322,19.699,19.675,80.72]
[1693788875624,20.0,19.698,19.68,25.72]
[1693788875827,20.0,19.698,19.681,55.0]
[1693788876417,92.322,19.699,19.681,55.0]
[1693788877221,92.322,19.699,19.681,147.322]
[1693788877933,20.0,19.698,19.681,147.322]
[1693788889542,20.0,19.698,19.68,37.47433]
[1693788890236,20.0,19.698,19.68,129.79633]
[1693788890936,20.0,19.698,19.681,55.0]
[1693788895862,25.72,19.69,19.68,11.75433]
[1693788896048,55.0,19.689,19.67,32.31635166]
[1693788896252,20.0,19.688,19.67,32.31635166]
[1693788896451,55.0,19.687,19.67,32.31635166]
[1693788897161,55.0,19.687,19.67,82.37819166]
[1693788898460,55.0,19.687,19.671,55.0]
[1693788898956,55.0,19.687,19.67,56.65819166]
[1693788899164,55.0,19.687,19.67,6.59635166]
[1693788900562,116.714,19.688,19.671,55.0]
[1693788905364,65.635011,19.699,19.68,25.72]
[1693788905565,20.0,19.698,19.681,229.73252458]
[1693788905766,20.0,19.699,19.682,0.57508974]
[1693788905967,20.0,19.699,19.683,87.72680714]
[1693788906167,20.0,19.699,19.684,55.0]
[1693788906376,25.72,19.7,19.685,75.97426714]
[1693788906679,25.72,19.7,19.686,55.0]
[1693788906882,25.72,19.7,19.685,75.97426714]
[1693788907071,25.72,19.7,19.683,11.75254]
[1693788907371,25.72,19.7,19.684,55.0]
[1693788907757,20.0,19.699,19.684,55.0]
[1693788907961,44.60422383,19.699,19.683,11.75254]
[1693788908163,87.52322383,19.698,19.683,11.75254]
[1693788909157,106.13293599,19.698,19.671,15.44337226]
[1693788909371,106.13293599,19.698,19.677,32.396352]
[1693788909664,20.0,19.699,19.678,66.75552]
[1693788909978,20.0,19.703,19.679,0.57508974]
[1693788910378,20.0,19.703,19.678,66.75552]
[1693788911078,20.0,19.703,19.679,11.75493]
[1693788911268,20.0,19.703,19.68,55.0]
[1693788911467,55.0,19.702,19.68,55.0]
[1693788911678,20.0,19.701,19.68,55.0]
[1693788911884,20.0,19.701,19.681,11.75373]
[1693788912064,20.0,19.701,19.682,55.0]
[1693788913178,25.8,19.7,19.682,55.0]
[1693788913387,20.0,19.699,19.682,55.0]
[1693788914060,44.60422383,19.699,19.681,11.75373]
[1693788914276,79.60422383,19.698,19.681,11.75373]
[1693788914879,90.458,19.697,19.681,11.75373]
[1693788915263,401.4,19.706,19.682,0.57508974]
[1693788915583,401.4,19.706,19.683,11.75254]
[1693788915876,401.4,19.706,19.684,75.57508974]
[1693788916081,401.4,19.706,19.685,11.75134]
[1693788916382,401.4,19.706,19.686,75.57508974]
[1693788916586,401.4,19.706,19.687,11.75015]
[1693788916880,98.373,19.709,19.688,55.0]
[1693788917063,75.0,19.708,19.688,55.0]
[1693788917267,75.0,19.708,19.688,130.0]
[1693788919885,107.51922383,19.708,19.688,130.0]
[1693788922483,99.60422383,19.708,19.688,130.0]
[1693788925886,75.0,19.708,19.688,130.0]
[1693788929988,24.60422383,19.707,19.688,130.0]
[1693788930191,7.916,19.705,19.688,130.0]
[1693788930390,55.0,19.704,19.688,130.0]
[1693788931389,55.0,19.705,19.688,130.0]
[1693788933587,55.0,19.705,19.688,75.0]
[1693788933889,20.0,19.704,19.687,11.75015]
[1693788934090,55.0,19.703,19.687,11.75015]
[1693788934390,27.918,19.702,19.683,81.421055]
[1693788934690,62.918,19.701,19.683,81.421055]
[1693788934886,62.918,19.701,19.684,55.0]
[1693788934887,20.0,19.7,19.684,55.0]
[1693788937590,27.918,19.7,19.684,55.0]
[1693788937789,20.0,19.7,19.684,55.0]
[1693788938384,27.918,19.7,19.684,55.0]
[1693788938599,20.0,19.7,19.684,55.0]
[1693788943095,45.8,19.7,19.684,55.0]
[1693788943684,20.0,19.7,19.685,0.57508974]
[1693788943884,20.0,19.701,19.685,0.57508974]
[1693788944591,15.21951218,19.709,19.69,25.8]
[1693788944785,112.8539,19.708,19.691,55.0]
[1693788945502,112.8539,19.708,19.691,110.0]
[1693788946993,55.0,19.707,19.69,25.8]
[1693788947995,55.0,19.707,19.686,25.52904498]
[1693788948196,55.0,19.707,19.687,55.0]
[1693788949282,55.0,19.707,19.686,55.0]
[1693788949479,55.0,19.707,19.688,0.55100052]
[1693788949684,55.0,19.707,19.688,55.55100052]
[1693788949881,55.0,19.707,19.688,55.0]
[1693788950892,55.0,19.707,19.689,0.57508974]
[1693788951096,81.51491381,19.707,19.689,0.57508974]
[1693788951696,55.0,19.707,19.689,0.57508974]
[1693788952507,55.0,19.707,19.688,55.0]
[1693788953005,55.0,19.707,19.689,0.57508974]
[1693788953501,55.0,19.707,19.688,55.0]
[1693788956396,55.0,19.707,19.689,0.51800474]
[1693788958006,55.0,19.707,19.688,55.0]
[1693788958588,55.0,19.707,19.689,0.57204955]
[1693788959909,62.916,19.707,19.689,0.57204955]
[1693788960095,55.0,19.707,19.688,55.0]
[1693788960905,62.916,19.707,19.688,55.0]
[1693788961511,55.0,19.707,19.688,55.0]
[1693788964716,55.0,19.707,19.687,112.8539]
[1693788965015,7.918,19.701,19.682,0.54033259]
[1693788965217,7.918,19.701,19.68,25.78]
[1693788965218,20.0,19.7,19.68,25.78]
[1693788965411,20.0,19.7,19.682,0.57508974]
[1693788965810,24.60422383,19.706,19.682,0.57508974]
[1693788965811,97.701,19.699,19.682,56.19614474]
[1693788966000,20.0,19.698,19.682,55.621055]
[1693788966517,20.0,19.698,19.683,0.50428631]
[1693788966716,20.0,19.698,19.682,55.621055]
[1693788967215,55.0,19.697,19.681,11.75373]
[1693788967415,55.0,19.697,19.681,67.374785]
[1693788968408,55.0,19.697,19.682,55.54884753]
[1693788968608,55.0,19.697,19.682,55.0]
[1693788975324,55.0,19.697,19.683,0.53112257]
[1693788975521,55.0,19.697,19.682,55.0]
[1693788976606,55.0,19.697,19.683,0.57508974]
[1693788978405,55.0,19.697,19.682,55.0]
[1693788981926,96.60893854,19.697,19.682,55.0]
[1693788983610,20.0,19.698,19.682,55.0]
[1693788983811,20.0,19.698,19.683,0.57508974]
[1693788987224,60.13814118,19.698,19.683,0.57508974]
[1693788993633,75.65159978,19.698,19.683,0.57508974]
[1693788994230,75.65159978,19.698,19.682,55.0]
[1693788995518,20.0,19.698,19.682,55.0]
[1693788995719,20.0,19.698,19.683,0.57508974]
[1693788996533,20.0,19.698,19.684,11.75194]
[1693788996723,20.0,19.698,19.685,55.0]
[1693789009033,20.0,19.698,19.686,0.54770105]
[1693789019651,97.701,19.699,19.686,0.54770105]
[1693789019850,20.0,19.698,19.686,0.54770105]
[1693789020153,113.7866,19.702,19.686,0.54770105]
[1693789023855,113.7866,19.702,19.685,55.0]
[1693789024044,113.7866,19.702,19.685,66.75134]
[1693789025643,113.7866,19.702,19.686,0.49539818]
[1693789027150,113.7866,19.702,19.685,66.75134]
[1693789027335,113.7866,19.702,19.686,0.50919861]
[1693789028450,113.7866,19.702,19.686,12.25994861]
[1693789028653,113.7866,19.702,19.687,55.0]
[1693789037256,25.8,19.71,19.69,25.8]
[1693789037556,94.7566,19.706,19.691,55.57508974]
[1693789045551,94.7566,19.706,19.691,67.32284974]
[1693789046156,25.8,19.71,19.691,67.32284974]
[1693789046459,112.8774,19.709,19.691,67.32284974]
[1693789046861,112.8774,19.709,19.692,11.74717]
[1693789047062,112.8774,19.709,19.693,55.57508974]
[1693789047556,112.8774,19.709,19.693,55.0]
[1693789047762,112.8774,19.709,19.693,110.57509]
[1693789049545,112.8774,19.709,19.694,0.49701786]
[1693789051160,112.8774,19.709,19.693,110.57509]
[1693789051355,112.8774,19.709,19.694,0.54693661]
[1693789051549,112.8774,19.709,19.693,110.57509]
[1693789051750,112.8774,19.709,19.694,0.51897552]
[1693789052553,112.8774,19.709,19.693,110.57509]
[1693789053957,112.8774,19.709,19.694,0.56361463]
[1693789054161,112.8774,19.709,19.693,110.57509]
[1693789054566,112.8774,19.709,19.694,0.57508974]
[1693789055066,112.8774,19.709,19.693,110.57509]
[1693789055558,112.8774,19.709,19.694,0.50731133]
[1693789055759,112.8774,19.709,19.693,110.57509]
[1693789057769,112.8774,19.709,19.694,0.57508974]
[1693789057968,112.8774,19.709,19.693,110.57509]
[1693789058672,112.8774,19.709,19.694,0.57508974]
[1693789060774,112.8774,19.709,19.693,122.32166]
[1693789060975,112.8774,19.709,19.694,0.57508974]
[1693789063378,112.8774,19.709,19.694,12.32105974]
[1693789063669,20.0,19.709,19.695,55.0]
[1693789063886,25.8,19.72,19.7,25.8]
[1693789064082,99.8383,19.719,19.701,67.31688974]
[1693789064394,20.0,19.718,19.702,11.7412]
[1693789064693,20.0,19.718,19.703,55.57508974]
[1693789064874,20.0,19.718,19.703,67.31569974]
[1693789065182,20.0,19.718,19.703,66.74061]
[1693789065586,20.0,19.718,19.704,11.74001]
[1693789065787,20.0,19.718,19.705,55.0]
[1693789069884,20.0,19.718,19.704,11.74001]
[1693789079994,20.0,19.718,19.705,55.0]
[1693789092801,99.8383,19.719,19.71,25.8]
[1693789092998,44.48675622,19.725,19.712,0.57508974]
[1693789093194,44.48675622,19.725,19.711,55.0]
[1693789093195,98.1812,19.727,19.711,55.0]
[1693789094103,98.1812,19.727,19.712,0.57508974]
[1693789094312,139.43538568,19.727,19.712,0.57508974]
[1693789094690,154.3425394,19.727,19.712,0.57508974]
[1693789094901,154.3425394,19.727,19.706,11.73882]
[1693789094902,25.8,19.72,19.706,11.73882]
[1693789095206,20.0,19.719,19.702,6.58563786]
[1693789095404,111.071,19.719,19.703,0.57508974]
[1693789096209,111.071,19.719,19.703,55.57508974]
[1693789097399,55.0,19.718,19.703,0.57508974]
[1693789098911,55.0,19.718,19.703,55.57508974]
[1693789100613,62.911,19.718,19.703,0.57508974]
[1693789101111,55.0,19.718,19.703,0.57508974]
[1693789109605,55.0,19.718,19.703,55.57508974]
[1693789109805,126.09841116,19.719,19.703,55.57508974]
[1693789116210,111.071,19.719,19.703,55.57508974]
[1693789117517,111.071,19.719,19.703,81.10413472]
[1693789120413,111.071,19.719,19.704,37.26905498]
[1693789120612,111.071,19.719,19.71,25.8]
[1693789121229,26.49082866,19.726,19.711,55.0]
[1693789121530,40.3125317,19.728,19.712,0.57508974]
[1693789121822,91.8255,19.729,19.712,0.57508974]
[1693789122033,20.0,19.728,19.712,0.57508974]
[1693789124624,20.0,19.728,19.713,11.73465]
[1693789124819,20.0,19.728,19.714,55.0]
[1693789126043,20.0,19.728,19.72,25.8]
[1693789126329,20.0,19.728,19.721,55.0]
[1693789129936,91.8255,19.729,19.721,55.0]
[1693789130235,20.0,19.728,19.721,55.0]
[1693789130538,401.4,19.735,19.721,55.0]
[1693789130539,21.42491025,19.733,19.721,55.0]
[1693789131121,21.42491025,19.733,19.718,80.529045]
[1693789131424,29.32991025,19.733,19.713,11.73465]
[1693789131934,29.32991025,19.733,19.713,96.766817]
[1693789132128,29.32991025,19.733,19.714,0.57508974]
[1693789132734,25.8,19.73,19.714,0.57508974]
[1693789132938,7.907,19.728,19.714,0.57508974]
[1693789133130,7.907,19.728,19.713,11.73465]
[1693789133332,55.0,19.729,19.713,11.73465]
[1693789133640,20.0,19.728,19.713,11.73465]
[1693789133829,115.6271,19.728,19.713,11.73465]
[1693789134029,115.6271,19.728,19.713,66.73465]
[1693789134229,115.6271,19.728,19.714,55.0]
[1693789138740,115.6271,19.728,19.713,11.73465]
[1693789139134,115.6271,19.728,19.711,0.57508974]
[1693789139445,115.6271,19.728,19.711,55.57508974]
[1693789139747,115.6271,19.728,19.711,55.0]
[1693789140242,115.6271,19.728,19.712,0.57508974]
[1693789149445,95.6271,19.728,19.712,0.57508974]
[1693789149631,25.8,19.74,19.72,25.8]
[1693789149832,118.94811025,19.739,19.721,81.10413472]
[1693789150146,118.94811025,19.739,19.721,147.65857289]
[1693789150526,98.94811025,19.739,19.721,218.62062909]
[1693789150737,97.5232,19.739,19.73,25.8]
[1693789150941,26.46984122,19.745,19.732,0.57508974]
[1693789151131,26.46984122,19.745,19.731,55.0]
[1693789151330,25.8,19.75,19.731,55.0]
[1693789151331,1.42491025,19.744,19.731,55.0]
[1693789151532,1.42491025,19.748,19.731,55.0]
[1693789151738,41.30326807,19.749,19.731,55.0]
[1693789151950,75.0,19.748,19.731,55.0]
[1693789152149,1.42491025,19.747,19.731,55.0]
[1693789156751,1.42491025,19.747,19.722,70.9614662]
[1693789156937,1.42491025,19.747,19.723,32.30378974]
[1693789157139,56.42491025,19.747,19.724,11.72811]
[1693789157335,56.42491025,19.747,19.725,20.57508974]
[1693789157575,56.42491025,19.747,19.725,32.30259974]
[1693789157844,98.4506,19.746,19.725,32.30259974]
[1693789158052,56.42491025,19.745,19.725,88.72751074]
[1693789158549,56.42491025,19.745,19.727,0.57508974]
[1693789158744,56.42491025,19.745,19.727,20.57508974]
[1693789158930,55.0,19.745,19.729,0.57508974]
[1693789159134,1.42491025,19.744,19.729,0.57508974]
[1693789160749,1.42491025,19.745,19.729,0.57508974]
[1693789161147,98.4506,19.746,19.729,0.57508974]
[1693789161347,1.42491025,19.745,19.73,6.57629179]
[1693789161651,1.42491025,19.747,19.731,55.57508974]
[1693789161951,56.42491025,19.747,19.732,6.57562523]
[1693789163453,93.7721,19.746,19.732,6.57562523]
[1693789163641,1.42491025,19.745,19.732,6.57562523]
[1693789164043,1.42491025,19.746,19.732,6.57562523]
[1693789170956,1.42491025,19.746,19.732,26.84555723]
[1693789171154,1.42491025,19.746,19.733,6.575292]
[1693789179747,9.32491025,19.746,19.733,6.575292]
[1693789179944,1.42491025,19.739,19.733,6.575292]
[1693789180250,21.42491025,19.739,19.733,6.575292]
[1693789180454,20.0,19.739,19.733,6.575292]
[1693789181460,1.42491025,19.738,19.733,6.575292]
[1693789185866,21.42491025,19.739,19.733,6.575292]
[1693789198583,55.0,19.738,19.733,6.575292]
[1693789198772,1.42491025,19.737,19.733,6.575292]
[1693789199078,1.42491025,19.737,19.721,48.36416973]
[1693789199272,1.42491025,19.737,19.723,0.57508974]
[1693789199673,81.46846517,19.738,19.723,0.57508974]
[1693789199855,1.42491025,19.737,19.723,0.57508974]
[1693789200973,1.42491025,19.737,19.723,55.0]
[1693789201177,1.42491025,19.737,19.724,6.57829229]
[1693789202774,1.42491025,19.738,19.725,55.0]
[1693789202976,1.42491025,19.738,19.726,6.57762532]
[1693789203767,56.42491025,19.738,19.726,6.57762532]
[1693789205280,7.904,19.737,19.726,6.57762532]
[1693789205577,20.0,19.739,19.726,6.57762532]
[1693789205578,55.0,19.736,19.726,6.57762532]
[1693789207180,62.904,19.736,19.726,6.57762532]
[1693789207386,55.0,19.736,19.726,6.57762532]
[1693789207577,1.42491025,19.735,19.726,6.57762532]
[1693789208070,55.0,19.736,19.726,6.57762532]
[1693789209372,1.42491025,19.735,19.726,6.57762532]
[1693789210478,55.0,19.736,19.726,6.57762532]
[1693789210680,1.42491025,19.735,19.726,6.57762532]
[1693789211069,1.42491025,19.738,19.726,6.57762532]
[1693789212683,20.0,19.739,19.726,6.57762532]
[1693789212865,1.42491025,19.737,19.726,6.57762532]
[1693789213280,55.0,19.738,19.726,6.57762532]
[1693789213586,1.42491025,19.737,19.726,6.57762532]
[1693789223487,1.42491025,19.737,19.714,6.58162915]
[1693789223673,97.2379,19.736,19.715,75.57508974]
[1693789223873,56.42491025,19.735,19.716,6.58096151]
[1693789224172,55.0,19.735,19.717,55.57508974]
[1693789224368,55.0,19.735,19.718,26.580294]
[1693789224576,55.0,19.736,19.719,7.15505003]
[1693789224783,55.0,19.736,19.72,6.57962663]
[1693789225096,55.0,19.737,19.721,0.57508974]
[1693789225493,55.0,19.738,19.721,0.57508974]
[1693789225791,1.42491025,19.737,19.721,0.57508974]
[1693789226183,92.9352,19.736,19.721,0.57508974]
[1693789226484,55.0,19.735,19.721,0.57508974]
[1693789230890,92.9352,19.736,19.721,55.57508974]
[1693789231099,92.9352,19.736,19.723,0.57508974]
[1693789231290,92.9352,19.736,19.723,55.57508974]
[1693789231594,92.9352,19.736,19.725,0.57508974]
[1693789231788,92.9352,19.736,19.724,6.57829229]
[1693789232980,20.0,19.739,19.724,6.57829229]
[1693789233300,1.42491025,19.738,19.724,6.57829229]
[1693789233892,56.42491025,19.738,19.724,6.57829229]
[1693789237385,1.42491025,19.738,19.725,55.57508974]
[1693789237581,20.0,19.739,19.727,0.57508974]
[1693789240890,56.42491025,19.738,19.727,0.57508974]
[1693789241091,56.42491025,19.738,19.726,6.57762532]
[1693789242607,55.0,19.738,19.726,6.57762532]
[1693789242903,1.42491025,19.737,19.726,6.57762532]
[1693789243600,55.0,19.738,19.726,6.57762532]
[1693789243795,1.42491025,19.737,19.726,6.57762532]
[1693789244796,55.0,19.738,19.726,6.57762532]
[1693789244995,1.42491025,19.737,19.726,6.57762532]
[1693789245998,55.0,19.738,19.726,6.57762532]
[1693789246199,1.42491025,19.737,19.726,6.57762532]
[1693789268008,20.0,19.739,19.728,0.57508974]
[1693789268325,1.42491025,19.738,19.729,6.57662512]
[1693789268505,20.0,19.739,19.729,6.57662512]
[1693789268709,1.42491025,19.738,19.729,6.57662512]
[1693789271230,20.0,19.739,19.729,6.57662512]
[1693789272612,1.42491025,19.738,19.729,6.57662512]
[1693789273515,20.0,19.739,19.729,6.57662512]
[1693789275725,55.0,19.738,19.729,6.57662512]
[1693789276431,1.42491025,19.737,19.729,6.57662512]
[1693789277429,55.0,19.738,19.729,6.57662512]
[1693789285613,1.42491025,19.737,19.729,6.57662512]
[1693789287045,55.0,19.738,19.729,6.57662512]
[1693789288741,96.31779016,19.738,19.729,6.57662512]
[1693789289034,1.42491025,19.737,19.729,6.57662512]
[1693789293833,15.36815415,19.738,19.729,6.57662512]
[1693789296541,1.42491025,19.738,19.729,6.57662512]
[1693789300347,55.0,19.738,19.729,6.57662512]
[1693789300552,1.42491025,19.737,19.729,6.57662512]
[1693789306448,24.60620095,19.736,19.72,0.57508974]
[1693789306657,56.42491025,19.735,19.719,0.57508974]
[1693789306849,56.42491025,19.735,19.714,0.57508974]
[1693789307152,56.42491025,19.735,19.714,55.57508974]
[1693789307344,151.71121025,19.735,19.715,20.0]
[1693789307544,151.71121025,19.735,19.716,55.57508974]
[1693789307743,151.71121025,19.735,19.717,20.0]
[1693789307744,150.2863,19.735,19.717,20.0]
[1693789308050,1.42491025,19.734,19.718,0.57508974]
[1693789312855,150.2863,19.735,19.718,0.57508974]
[1693789317846,95.2863,19.735,19.721,0.57508974]
[1693789318265,65.19595016,19.737,19.721,55.57508974]
[1693789318468,99.2,19.736,19.721,55.57508974]
[1693789320562,25.67,19.73,19.71,25.67]
[1693789320757,7.907,19.728,19.71,25.67]
[1693789320956,56.57508973,19.727,19.71,25.67]
[1693789321351,1.57508973,19.727,19.71,25.67]
[1693789321557,55.0,19.726,19.71,25.67]
[1693789321757,1.57508973,19.725,19.71,25.67]
[1693789321957,1.57508973,19.727,19.71,25.67]
[1693789323363,1.57508973,19.727,19.711,55.0]
[1693789335172,21.57508973,19.728,19.711,55.0]
[1693789339086,45.99901851,19.728,19.711,55.0]
[1693789339795,55.0,19.727,19.711,55.0]
[1693789339998,1.57508973,19.726,19.711,55.0]
[1693789340892,1.57508973,19.726,19.71,25.67]
[1693789344592,1.57508973,19.726,19.703,69.54352916]
[1693789344791,1.57508973,19.726,19.704,75.0]
[1693789345499,1.57508973,19.726,19.704,130.0]
[1693789346504,1.57508973,19.726,19.71,25.67]
[1693789350413,41.70490716,19.726,19.71,25.67]
[1693789350710,1.57508973,19.724,19.71,25.67]
[1693789351510,1.57508973,19.725,19.711,55.0]
[1693789351702,1.57508973,19.727,19.711,55.0]
[1693789368826,1.57508973,19.728,19.711,55.0]
[1693789389335,64.48208973,19.728,19.71,25.67]
[1693789389527,88.90601851,19.728,19.71,25.67]
[1693789390620,88.90601851,19.728,19.711,55.0]
[1693789391233,80.99901851,19.728,19.711,55.0]
[1693789391715,80.99901851,19.728,19.71,25.67]
[1693789392827,1.57508973,19.719,19.706,114.468116]
[1693789393031,56.57508973,19.719,19.706,114.468116]
[1693789393239,1.57508973,19.717,19.7,25.67]
[1693789393625,1.57508973,19.717,19.7,79.675641]
[1693789394521,1.57508973,19.717,19.701,55.0]
[1693789403138,1.57508973,19.717,19.7,25.67]
[1693789403139,56.57508973,19.717,19.7,25.67]
[1693789404349,56.57508973,19.717,19.701,55.0]
[1693789404647,98.17508972,19.717,19.701,55.0]
[1693789405148,98.17508972,19.717,19.7,25.67]
[1693789405753,113.16138413,19.717,19.7,25.67]
[1693789423455,113.16138413,19.717,19.701,55.0]
[1693789425440,58.16138413,19.717,19.701,55.0]
[1693789432549,58.16138413,19.717,19.701,66.7418]
[1693789433563,58.16138413,19.717,19.701,11.7418]
[1693789433862,1.57508973,19.715,19.701,11.7418]
[1693789434256,1.57508973,19.715,19.7,25.67]
[1693789435562,1.57508973,19.715,19.701,55.0]
[1693789437357,1.57508973,19.715,19.7,25.67]
[1693789437759,1.57508973,19.715,19.701,55.0]
[1693789438855,1.07508973,19.715,19.702,0.5]
[1693789440057,1.07508973,19.715,19.701,0.5]
[1693789443058,27.57533355,19.715,19.701,0.5]
[1693789443476,1.07508973,19.715,19.701,0.5]
[1693789449976,41.13194251,19.715,19.701,0.5]
[1693789451060,41.13194251,19.715,19.698,54.005641]
[1693789451266,41.13194251,19.715,19.699,55.5]
[1693789454181,41.13194251,19.715,19.7,25.67]
[1693789454475,41.13194251,19.715,19.701,55.5]
[1693789459578,1.07508973,19.715,19.701,55.5]
[1693789459771,21.07508973,19.719,19.701,55.5]
[1693789460372,36.00351612,19.719,19.701,55.5]
[1693789462481,55.0,19.718,19.701,55.5]
[1693789462685,1.07508973,19.717,19.701,55.5]
[1693789473185,1.07508973,19.718,19.701,55.5]
[1693789475989,1.07508973,19.718,19.702,11.7412]
[1693789476187,1.07508973,19.718,19.703,55.5]
[1693789507916,56.07508973,19.718,19.703,55.5]
[1693789511219,1.07508973,19.718,19.703,55.5]
[1693789511518,56.07508973,19.718,19.703,55.5]
[1693789519824,82.56854557,19.718,19.703,55.5]
[1693789520026,27.56854557,19.718,19.703,55.5]
[1693789520226,1.07508973,19.718,19.703,67.24061]
[1693789520423,21.07508973,19.718,19.703,67.24061]
[1693789521130,21.07508973,19.718,19.704,11.74001]
[1693789521332,21.07508973,19.718,19.705,55.5]
[1693789521538,21.07508973,19.718,19.705,67.23942]
[1693789521829,1.07508973,19.718,19.71,25.67]
[1693789522022,1.07508973,19.729,19.711,55.5]
[1693789522222,21.07508973,19.729,19.711,55.5]
[1693789524728,24.42392878,19.728,19.711,55.5]
[1693789524929,1.07508973,19.726,19.711,55.5]
[1693789525133,24.42392878,19.725,19.711,55.5]
[1693789525338,1.07508973,19.724,19.711,55.0]
[1693789526230,1.07508973,19.724,19.712,0.5]
[1693789527119,25.49901851,19.724,19.712,0.5]
[1693789527324,24.42392878,19.723,19.712,0.5]
[1693789527523,1.07508973,19.722,19.702,20.5]
[1693789527735,1.07508973,19.722,19.703,66.74061]
[1693789528036,1.07508973,19.722,19.704,20.5]
[1693789528232,1.07508973,19.722,19.705,55.0]
[1693789528429,1.07508973,19.722,19.706,20.5]
[1693789528631,1.07508973,19.722,19.707,55.0]
[1693789528823,1.07508973,19.722,19.708,20.5]
[1693789529023,1.07508973,19.722,19.709,55.0]
[1693789529229,1.07508973,19.722,19.71,0.5]
[1693789537540,1.07508973,19.723,19.71,0.5]
[1693789540437,1.07508973,19.726,19.71,26.17]
[1693789540641,1.07508973,19.726,19.712,0.5]
[1693789542446,25.67,19.72,19.712,0.5]
[1693789542746,1.07508973,19.719,19.709,0.5]
[1693789542954,1.07508973,19.719,19.708,20.0]
[1693789542955,1.07508973,19.719,19.705,0.5]
[1693789543139,1.07508973,19.724,19.705,12.23942]
[1693789543338,49.65569698,19.723,19.71,0.5]
[1693789543537,1.07508973,19.722,19.71,0.5]
[1693789543950,1.07508973,19.722,19.71,55.5]
[1693789545537,1.07508973,19.722,19.711,11.73584]
[1693789545848,25.67,19.74,19.711,11.73584]
[1693789545849,2.07508973,19.734,19.712,75.5]
[1693789546029,2.07508973,19.734,19.713,11.73465]
[1693789546229,2.07508973,19.738,19.715,0.5]
[1693789546430,124.87571851,19.738,19.717,0.5]
[1693789546732,26.49901851,19.738,19.717,75.5]
[1693789546932,153.9461,19.737,19.717,75.5]
[1693789547143,2.07508973,19.736,19.717,75.5]
[1693789547332,2.07508973,19.736,19.717,131.0]
[1693789547745,2.07508973,19.736,19.718,20.0]
[1693789547946,2.07508973,19.736,19.719,0.5]
[1693789548247,26.49901851,19.736,19.719,0.5]
[1693789548435,55.0,19.735,19.719,0.5]
[1693789548639,2.07508973,19.734,19.719,0.5]
[1693789556852,2.07508973,19.734,19.72,25.67]
[1693789557054,2.07508973,19.734,19.721,0.5]
[1693789561351,2.07508973,19.744,19.722,37.07267843]
[1693789561558,98.7973,19.744,19.73,25.67]
[1693789561857,2.07508973,19.749,19.73,25.67]
[1693789561858,2.07508973,19.743,19.731,0.5]
[1693789562063,95.9258,19.747,19.731,55.5]
[1693789562262,2.07508973,19.746,19.731,55.0]
[1693789562761,22.07508973,19.749,19.732,0.5]
[1693789562951,22.07508973,19.749,19.731,55.0]
[1693789563268,22.07508973,19.749,19.732,41.39301]
[1693789563443,22.07508973,19.749,19.733,55.0]
[1693789567266,21.57508973,19.749,19.733,55.0]
[1693789570450,21.57508973,19.749,19.734,0.53426649]
[1693789571671,55.0,19.748,19.734,0.53426649]
[1693789571868,1.57508973,19.747,19.733,1.0]